fUST/lending_fUST_20250309
["ID","MTS","AMOUNT","RATE_DAILY","PERIOD"]
[355742199,1741524218931,-500.0,0.00047123,120]
[355742200,1741524218957,-500.0,0.00047123,120]
[355742201,1741524218984,-1251.95,0.00047123,120]
[355742202,1741524219012,-808.63,0.00047123,120]
[355742203,1741524219040,-1269.2,0.00047123,120]
[355742204,1741524219067,-500.0,0.00047123,120]
[355742205,1741524219190,-500.0,0.00047123,120]
[355742206,1741524219221,-500.0,0.00047123,120]
[355742207,1741524219248,-500.0,0.00047123,120]
[355742208,1741524219274,-500.0,0.00047123,120]
[355742209,1741524219299,-540.25343236,0.00047123,120]
[355742210,1741524219324,-500.0,0.00047123,120]
[355742211,1741524219351,-583.52,0.00047123,120]
[355742212,1741524219376,-500.0,0.00047123,120]
[355742213,1741524219406,-581.46,0.00047123,120]
[355742214,1741524219433,-2007.35,0.00047123,30]
[355742215,1741524219459,-500.0,0.00047123,120]
[355742216,1741524219485,-500.0,0.00047123,120]
[355742217,1741524219510,-212.95256584,0.00047123,120]
[355742218,1741524219536,-500.0,0.00047123,120]
[355742219,1741524219561,-500.0,0.00047123,120]
[355742220,1741524219586,-500.0,0.00047123,120]
[355742221,1741524219610,-500.0,0.00047123,120]
[355742222,1741524219636,-500.0,0.00047123,120]
[355742223,1741524219662,-500.0,0.00047123,120]
[355742224,1741524219689,-500.0,0.00047123,120]
[355742225,1741524219719,-500.0,0.00047123,120]
[355742226,1741524219746,-500.0,0.00047123,120]
[355742227,1741524219775,-500.0,0.00047123,120]
[355742228,1741524219801,-500.0,0.00047123,120]
[355742229,1741524219828,-526.38702251,0.00047123,120]
[355742230,1741524219872,-500.0,0.00047123,120]
[355742231,1741524219902,-1452.52,0.00047123,120]
[355742232,1741524219930,-500.0,0.00047123,120]
[355742233,1741524219958,-503.68870789,0.00047123,120]
[355742234,1741524219986,-636.03,0.00047123,120]
[355742235,1741524220014,-2684.28,0.00047123,120]
[355742236,1741524220041,-500.0,0.00047123,120]
[355742237,1741524220068,-213.439707,0.00047123,120]
[355742238,1741524220095,-500.0,0.00047123,120]
[355742239,1741524220122,-500.0,0.00047123,120]
[355742240,1741524220150,-213.439714,0.00047123,120]
[355742241,1741524220176,-500.0,0.00047123,120]
[355742242,1741524220204,-500.0,0.00047123,120]
[355742243,1741524220230,-500.0,0.00047123,120]
[355742244,1741524220258,-500.0,0.00047123,120]
[355742245,1741524220289,-678.46,0.00047123,120]
[355742246,1741524220315,-500.0,0.00047123,120]
[355742247,1741524220342,-500.0,0.00047123,120]
[355742248,1741524220368,-611.27,0.00047123,120]
[355742249,1741524220394,-500.0,0.00047123,120]
[355742250,1741524220420,-500.0,0.00047123,120]
[355742251,1741524220446,-589.92,0.00047123,120]
[355742252,1741524220470,-500.0,0.00047123,120]
[355742253,1741524220497,-518.03,0.00047123,120]
[355742254,1741524220522,-500.0,0.00047123,120]
[355742255,1741524220549,-500.0,0.00047123,120]
[355742256,1741524220574,-927.66,0.00047123,120]
[355742257,1741524220600,-500.0,0.00047123,120]
[355742258,1741524220628,-500.0,0.00047123,120]
[355742259,1741524220654,-530.27423315,0.00047123,120]
[355742260,1741524220709,-500.0,0.00047123,120]
[355742261,1741524220739,-500.0,0.00047123,120]
[355742262,1741524220767,-500.0,0.00047123,120]
[355742263,1741524220793,-500.0,0.00047123,120]
[355742264,1741524220820,-728.61,0.00047123,120]
[355742265,1741524220957,-500.0,0.00047123,120]
[355742266,1741524220985,-872.06,0.00047123,120]
[355742267,1741524221011,-4352.83,0.00047123,120]
[355742268,1741524221037,-500.0,0.00047123,120]
[355742269,1741524221064,-500.0,0.00047123,120]
[355742270,1741524221089,-500.0,0.00047123,120]
[355742271,1741524221115,-500.0,0.00047123,120]
[355742272,1741524221139,-500.0,0.00047123,120]
[355742273,1741524221163,-162.390994,0.00047123,120]
[355742274,1741524221188,-162.390986,0.00047123,120]
[355742275,1741524221213,-500.0,0.00047123,120]
[355742276,1741524221237,-500.0,0.00047123,120]
[355742277,1741524221265,-500.0,0.00047123,120]
[355742278,1741524221290,-500.0,0.00047123,120]
[355742279,1741524221316,-500.0,0.00047123,120]
[355742280,1741524221343,-500.0,0.00047123,120]
[355742281,1741524221369,-790.59,0.00047123,120]
[355742282,1741524221394,-500.0,0.00047123,120]
[355742283,1741524221421,-500.0,0.00047123,120]
[355742284,1741524221447,-500.0,0.00047123,120]
[355742285,1741524221471,-500.0,0.00047123,120]
[355742286,1741524221497,-500.0,0.00047123,120]
[355742287,1741524221523,-1325.2,0.00047123,120]
[355742288,1741524221548,-714.5,0.00047378,60]
[355742289,1741524221574,-500.0,0.00047437,120]
[355742290,1741524221604,-243.839853,0.00047661,120]
[355742291,1741524221630,-243.839848,0.00047661,120]
[355742292,1741524221654,-500.0,0.00047671,120]
[355742293,1741524221682,-151.0,0.00047671,120]
[355742294,1741524221708,-151.0,0.00047671,120]
[355742295,1741524221732,-151.0,0.00047671,120]
[355742296,1741524221759,-151.0,0.00047671,120]
[355742297,1741524221783,-151.0,0.00047671,120]
[355742298,1741524221819,-151.0,0.00047671,120]
[355742299,1741524221855,-151.0,0.00047671,120]
[355742300,1741524221892,-151.0,0.00047671,120]
[355742301,1741524221926,-151.0,0.00047671,120]
[355742302,1741524221962,-500.0,0.00047671,120]
[355742303,1741524221996,-500.0,0.00047671,120]
[355742304,1741524222032,-500.0,0.00047671,120]
[355742305,1741524222066,-500.0,0.00047671,120]
[355742306,1741524222101,-500.0,0.00047671,120]
[355742307,1741524222136,-500.0,0.00047671,120]
[355742308,1741524222171,-500.0,0.00047671,120]
[355742309,1741524222206,-500.0,0.00047671,120]
[355742310,1741524222248,-500.0,0.00047671,120]
[355742311,1741524222281,-500.0,0.00047671,120]
[355742312,1741524222315,-500.0,0.00047671,120]
[355742313,1741524222349,-151.0,0.00047671,120]
[355742314,1741524222383,-500.0,0.00047671,120]
[355742315,1741524222417,-500.0,0.00047671,120]
[355742316,1741524222451,-500.0,0.00047671,120]
[355742317,1741524222485,-500.0,0.00047671,120]
[355742318,1741524222521,-500.0,0.00047671,120]
[355742319,1741524222554,-215.52369467,0.00047671,120]
[355742320,1741524222588,-750.22,0.00047671,120]
[355742321,1741524222622,-500.0,0.00047671,120]
[355742322,1741524222656,-338.44191962,0.00047671,120]
[355742323,1741524222785,-500.0,0.00047671,120]
[355742324,1741524222820,-753.17,0.00047671,120]
[355742325,1741524222855,-500.0,0.00047671,120]
[355742326,1741524222890,-500.0,0.00047671,120]
[355742327,1741524222924,-500.0,0.00047671,120]
[355742328,1741524222960,-500.0,0.00047671,120]
[355742329,1741524222995,-359.86852065,0.00047671,120]
[355742330,1741524223029,-1157.16,0.00047671,120]
[355742331,1741524223064,-500.0,0.00047671,120]
[355742332,1741524223099,-501.23477947,0.00047671,120]
[355742333,1741524223135,-500.0,0.00047671,120]
[355742334,1741524223170,-500.0,0.00047671,120]
[355742335,1741524223205,-500.0,0.00047671,120]
[355742336,1741524223239,-500.0,0.00047671,120]
[355742337,1741524223272,-500.0,0.00047671,120]
[355742338,1741524223306,-500.0,0.00047671,120]
[355742339,1741524223339,-500.0,0.00047671,120]
[355742340,1741524223371,-500.0,0.00047671,120]
[355742341,1741524223405,-500.0,0.00047671,120]
[355742342,1741524223438,-500.0,0.00047671,120]
[355742343,1741524223470,-500.0,0.00047671,120]
[355742344,1741524223502,-500.0,0.00047671,120]
[355742345,1741524223536,-500.0,0.00047671,120]
[355742346,1741524223569,-500.0,0.00047671,120]
[355742347,1741524223603,-157.98951824,0.00047671,120]
[355742348,1741524223636,-500.0,0.00047671,120]
[355742349,1741524223671,-1246.2,0.00047671,120]
[355742350,1741524223704,-500.0,0.00047671,120]
[355742351,1741524223738,-500.0,0.00047671,120]
[355742352,1741524223773,-500.0,0.00047671,120]
[355742353,1741524223806,-500.0,0.00047671,120]
[355742354,1741524223839,-500.0,0.00047671,120]
[355742355,1741524223872,-500.0,0.00047671,120]
[355742356,1741524223905,-500.0,0.00047671,120]
[355742357,1741524223938,-536.31852003,0.00047671,120]
[355742358,1741524223971,-500.0,0.00047671,120]
[355742359,1741524224008,-500.0,0.00047671,120]
[355742360,1741524224042,-500.0,0.00047671,120]
[355742361,1741524224076,-500.0,0.00047671,120]
[355742362,1741524224110,-523.18876996,0.00047671,120]
[355742363,1741524224145,-500.0,0.00047671,120]
[355742364,1741524224179,-500.0,0.00047671,120]
[355742365,1741524224213,-500.0,0.00047671,120]
[355742366,1741524224246,-500.0,0.00047671,120]
[355742367,1741524224279,-500.0,0.00047671,120]
[355742368,1741524224313,-500.0,0.00047671,120]
[355742369,1741524224345,-500.0,0.00047671,120]
[355742370,1741524224378,-385.63934632,0.00047671,120]
[355742371,1741524224412,-500.0,0.00047671,120]
[355742372,1741524224445,-578.30042123,0.00047671,120]
[355742373,1741524224478,-500.0,0.00047671,120]
[355742374,1741524224512,-500.0,0.00047671,120]
[355742375,1741524224546,-500.0,0.00047671,120]
[355742376,1741524224580,-514.74,0.00047671,120]
[355742377,1741524224614,-500.0,0.00047671,120]
[355742378,1741524224648,-215.86907999,0.00047671,120]
[355742379,1741524224779,-500.0,0.00047671,120]
[355742380,1741524224816,-1167.27,0.00047671,120]
[355742381,1741524224852,-500.0,0.00047671,120]
[355742382,1741524224888,-500.0,0.00047671,120]
[355742383,1741524224925,-500.0,0.00047671,120]
[355742384,1741524224961,-500.0,0.00047671,120]
[355742385,1741524224998,-500.0,0.00047671,120]
[355742386,1741524225033,-500.0,0.00047671,120]
[355742387,1741524225069,-500.0,0.00047671,120]
[355742388,1741524225106,-500.0,0.00047671,120]
[355742389,1741524225143,-500.0,0.00047671,120]
[355742390,1741524225182,-500.0,0.00047671,120]
[355742391,1741524225217,-500.0,0.00047671,120]
[355742392,1741524225252,-500.0,0.00047671,120]
[355742393,1741524225288,-500.0,0.00047671,120]
[355742394,1741524225324,-5303.54,0.00047671,120]
[355742395,1741524225358,-500.0,0.00047671,120]
[355742396,1741524225393,-999.0,0.00047671,120]
[355742397,1741524225428,-500.0,0.00047671,120]
[355742398,1741524225463,-500.0,0.00047671,120]
[355742399,1741524225496,-3138.9,0.00047671,120]
[355742400,1741524225530,-500.0,0.00047671,120]
[355742401,1741524225565,-8609.06,0.00047671,120]
[355742402,1741524225599,-500.0,0.00047671,120]
[355742403,1741524225632,-500.0,0.00047671,120]
[355742404,1741524225667,-500.0,0.00047671,120]
[355742405,1741524225701,-500.0,0.00047671,120]
[355742406,1741524225735,-1507.21,0.00047671,120]
[355742407,1741524225769,-1095.38,0.00047671,120]
[355742408,1741524225804,-500.0,0.00047671,120]
[355742409,1741524225838,-541.43,0.00047671,120]
[355742410,1741524225873,-500.0,0.00047671,120]
[355742411,1741524225908,-500.0,0.00047671,120]
[355742412,1741524225942,-610.81,0.00047671,120]
[355742413,1741524225976,-500.0,0.00047671,120]
[355742414,1741524226011,-275.15888733,0.00047671,120]
[355742415,1741524226046,-500.0,0.00047671,120]
[355742416,1741524226082,-500.0,0.00047671,120]
[355742417,1741524226118,-610.39,0.00047671,120]
[355742418,1741524226153,-500.0,0.00047671,120]
[355742419,1741524226188,-500.0,0.00047671,120]
[355742420,1741524226222,-500.0,0.00047671,120]
[355742421,1741524226256,-1535.93,0.00047671,120]
[355742422,1741524226290,-2670.35,0.00047671,120]
[355742423,1741524226324,-1991.11,0.00047671,120]
[355742424,1741524226358,-221.28872117,0.00047671,120]
[355742425,1741524226392,-500.0,0.00047671,120]
[355742426,1741524226425,-1453.9,0.00047671,120]
[355742427,1741524226458,-500.0,0.00047671,120]
[355742428,1741524226490,-500.0,0.00047671,120]
[355742429,1741524226522,-500.0,0.00047671,120]
[355742430,1741524226554,-500.0,0.00047671,120]
[355742431,1741524226587,-1251.95,0.00047671,120]
[355742432,1741524226619,-808.63,0.00047671,120]
[355742433,1741524226655,-1269.2,0.00047671,120]
[355742434,1741524226776,-500.0,0.00047671,120]
[355742435,1741524226810,-500.0,0.00047671,120]
[355742436,1741524226846,-500.0,0.00047671,120]
[355742437,1741524226880,-500.0,0.00047671,120]
[355742438,1741524226914,-500.0,0.00047671,120]
[355742439,1741524226947,-583.52,0.00047671,120]
[355742440,1741524226979,-500.0,0.00047671,120]
[355742441,1741524227011,-581.46,0.00047671,120]
[355742442,1741524227045,-2007.35,0.00047671,30]
[355742443,1741524227081,-500.0,0.00047671,120]
[355742444,1741524227114,-500.0,0.00047671,120]
[355742445,1741524227150,-500.0,0.00047671,120]
[355742446,1741524227183,-500.0,0.00047671,120]
[355742447,1741524227216,-500.0,0.00047671,120]
[355742448,1741524227249,-500.0,0.00047671,120]
[355742449,1741524227282,-500.0,0.00047671,120]
[355742450,1741524227314,-500.0,0.00047671,120]
[355742451,1741524227347,-500.0,0.00047671,120]
[355742452,1741524227379,-500.0,0.00047671,120]
[355742453,1741524227413,-500.0,0.00047671,120]
[355742454,1741524227448,-500.0,0.00047671,120]
[355742455,1741524227481,-500.0,0.00047671,120]
[355742456,1741524227514,-500.0,0.00047671,120]
[355742457,1741524227546,-1452.52,0.00047671,120]
[355742458,1741524227579,-500.0,0.00047671,120]
[355742459,1741524227611,-636.03,0.00047671,120]
[355742460,1741524227644,-2684.28,0.00047671,120]
[355742461,1741524227675,-500.0,0.00047671,120]
[355742462,1741524227709,-500.0,0.00047671,120]
[355742463,1741524227741,-500.0,0.00047671,120]
[355742464,1741524227775,-500.0,0.00047671,120]
[355742465,1741524227807,-500.0,0.00047671,120]
[355742466,1741524227838,-165.02283977,0.00047671,120]
[355742467,1741524227870,-500.0,0.00047671,120]
[355742468,1741524227902,-678.46,0.00047671,120]
[355742469,1741524227935,-500.0,0.00047671,120]
[355742470,1741524227966,-500.0,0.00047671,120]
[355742471,1741524227999,-611.27,0.00047671,120]
[355742472,1741524228032,-500.0,0.00047671,120]
[355742473,1741524228067,-500.0,0.00047671,120]
[355742474,1741524228102,-589.92,0.00047671,120]
[355742475,1741524228138,-518.03,0.00047671,120]
[355742476,1741524228172,-500.0,0.00047671,120]
[355742477,1741524228206,-533.43004553,0.00047671,120]
[355742478,1741524228241,-927.66,0.00047671,120]
[355742479,1741524228274,-500.0,0.00047671,120]
[355742480,1741524228307,-500.0,0.00047671,120]
[355742481,1741524228339,-500.0,0.00047671,120]
[355742482,1741524228378,-500.0,0.00047671,120]
[355742483,1741524228413,-500.0,0.00047671,120]
[355742484,1741524228447,-500.0,0.00047671,120]
[355742485,1741524228482,-728.61,0.00047671,120]
[355742486,1741524228611,-521.14627137,0.00047671,120]
[355742487,1741524228651,-872.06,0.00047671,120]
[355742488,1741524228689,-4352.83,0.00047671,120]
[355742489,1741524228724,-500.0,0.00047671,120]
[355742490,1741524228760,-500.0,0.00047671,120]
[355742491,1741524228796,-500.0,0.00047671,120]
[355742492,1741524228830,-500.0,0.00047671,120]
[355742493,1741524228865,-500.0,0.00047671,120]
[355742494,1741524228899,-500.0,0.00047671,120]
[355742495,1741524228932,-500.0,0.00047671,120]
[355742496,1741524228968,-500.0,0.00047671,120]
[355742497,1741524229004,-500.0,0.00047671,120]
[355742498,1741524229038,-500.0,0.00047671,120]
[355742499,1741524229072,-500.0,0.00047671,120]
[355742500,1741524229108,-790.59,0.00047671,120]
[355742501,1741524229145,-500.0,0.00047671,120]
[355742502,1741524229181,-500.0,0.00047671,120]
[355742503,1741524229214,-500.0,0.00047671,120]
[355742504,1741524229247,-500.0,0.00047671,120]
[355742505,1741524229281,-500.0,0.00047671,120]
[355742506,1741524229315,-1325.2,0.00047671,120]
[355742507,1741524229347,-241.35459028,0.000478,120]
[355742508,1741524229380,-151.0,0.00047818,120]
[355742509,1741524229412,-203.88,0.00047834,30]
[355742510,1741524229444,-117496.14783075,0.000479,120]
[355742511,1741524229475,-500.0,0.00047985,120]
[355742512,1741524229508,-26988.21008189,0.00048,120]
[355742513,1741524229540,-799.5,0.00048,120]
[355742514,1741524229572,-151.0,0.00048,120]
[355742515,1741524229603,-151.0,0.00048,120]
[355742516,1741524229634,-236.397292,0.00048,120]
[355742517,1741524229665,-151.0,0.00048,120]
[355742518,1741524229700,-1101.17770492,0.00048,120]
[355742519,1741524229732,-4000.0,0.00048,90]
[355742520,1741524229763,-151.0,0.00048106,120]
[355742521,1741524229797,-500.0,0.00048219,120]
[355742522,1741524229829,-151.0,0.00048219,120]
[355742523,1741524229861,-151.0,0.00048219,120]
[355742524,1741524229895,-151.0,0.00048219,120]
[355742525,1741524229929,-151.0,0.00048219,120]
[355742526,1741524229962,-151.0,0.00048219,120]
[355742527,1741524229995,-151.0,0.00048219,120]
[355742528,1741524230028,-615.19556578,0.00048219,120]
[355742529,1741524230060,-151.0,0.00048219,120]
[355742530,1741524230092,-500.0,0.00048219,120]
[355742531,1741524230124,-500.0,0.00048219,120]
[355742532,1741524230156,-210.02071735,0.00048219,120]
[355742533,1741524230188,-500.0,0.00048219,120]
[355742534,1741524230220,-500.0,0.00048219,120]
[355742535,1741524230251,-500.0,0.00048219,120]
[355742536,1741524230284,-500.0,0.00048219,120]
[355742537,1741524230402,-500.0,0.00048219,120]
[355742538,1741524230436,-500.0,0.00048219,120]
[355742539,1741524230468,-500.0,0.00048219,120]
[355742540,1741524230503,-151.0,0.00048219,120]
[355742541,1741524230536,-500.0,0.00048219,120]
[355742542,1741524230568,-500.0,0.00048219,120]
[355742543,1741524230600,-500.0,0.00048219,120]
[355742544,1741524230632,-537.24437351,0.00048219,120]
[355742545,1741524230664,-500.0,0.00048219,120]
[355742546,1741524230696,-750.22,0.00048219,120]
[355742547,1741524230728,-540.19320595,0.00048219,120]
[355742548,1741524230762,-500.0,0.00048219,120]
[355742549,1741524230794,-753.17,0.00048219,120]
[355742550,1741524230827,-500.0,0.00048219,120]
[355742551,1741524230860,-500.0,0.00048219,120]
[355742552,1741524230895,-500.0,0.00048219,120]
[355742553,1741524230929,-500.0,0.00048219,120]
[355742554,1741524230961,-1157.16,0.00048219,120]
[355742555,1741524230995,-500.0,0.00048219,120]
[355742556,1741524231030,-500.0,0.00048219,120]
[355742557,1741524231064,-500.0,0.00048219,120]
[355742558,1741524231097,-500.0,0.00048219,120]
[355742559,1741524231132,-500.0,0.00048219,120]
[355742560,1741524231166,-500.0,0.00048219,120]
[355742561,1741524231198,-500.0,0.00048219,120]
[355742562,1741524231230,-500.0,0.00048219,120]
[355742563,1741524231261,-183.57938543,0.00048219,120]
[355742564,1741524231292,-500.0,0.00048219,120]
[355742565,1741524231323,-500.0,0.00048219,120]
[355742566,1741524231354,-500.0,0.00048219,120]
[355742567,1741524231385,-500.0,0.00048219,120]
[355742568,1741524231416,-500.0,0.00048219,120]
[355742569,1741524231446,-500.0,0.00048219,120]
[355742570,1741524231477,-500.0,0.00048219,120]
[355742571,1741524231508,-1246.2,0.00048219,120]
[355742572,1741524231539,-500.0,0.00048219,120]
[355742573,1741524231571,-500.0,0.00048219,120]
[355742574,1741524231603,-500.0,0.00048219,120]
[355742575,1741524231633,-500.0,0.00048219,120]
[355742576,1741524231665,-500.0,0.00048219,120]
[355742577,1741524231699,-500.0,0.00048219,120]
[355742578,1741524231732,-500.0,0.00048219,120]
[355742579,1741524231763,-500.0,0.00048219,120]
[355742580,1741524231796,-500.0,0.00048219,120]
[355742581,1741524231828,-500.0,0.00048219,120]
[355742582,1741524231859,-500.0,0.00048219,120]
[355742583,1741524231890,-500.0,0.00048219,120]
[355742584,1741524231923,-500.0,0.00048219,120]
[355742585,1741524231954,-500.0,0.00048219,120]
[355742586,1741524231985,-500.0,0.00048219,120]
[355742587,1741524232100,-278.83672062,0.00048219,120]
[355742588,1741524232134,-334.68286952,0.00048219,120]
[355742589,1741524232167,-546.9706657,0.00048219,120]
[355742590,1741524232200,-500.0,0.00048219,120]
[355742591,1741524232233,-500.0,0.00048219,120]
[355742592,1741524232266,-523.28623931,0.00048219,120]
[355742593,1741524232298,-500.0,0.00048219,120]
[355742594,1741524232330,-514.74,0.00048219,120]
[355742595,1741524232364,-500.0,0.00048219,120]
[355742596,1741524232396,-500.0,0.00048219,120]
[355742597,1741524232429,-1167.27,0.00048219,120]
[355742598,1741524232462,-500.0,0.00048219,120]
[355742599,1741524232494,-500.0,0.00048219,120]
[355742600,1741524232528,-500.0,0.00048219,120]
[355742601,1741524232560,-500.0,0.00048219,120]
[355742602,1741524232592,-500.0,0.00048219,120]
[355742603,1741524232624,-500.0,0.00048219,120]
[355742604,1741524232656,-500.0,0.00048219,120]
[355742605,1741524232691,-500.0,0.00048219,120]
[355742606,1741524232723,-520.85384948,0.00048219,120]
[355742607,1741524232753,-500.0,0.00048219,120]
[355742608,1741524232785,-500.0,0.00048219,120]
[355742609,1741524232817,-500.0,0.00048219,120]
[355742610,1741524232850,-500.0,0.00048219,120]
[355742611,1741524232883,-5303.54,0.00048219,120]
[355742612,1741524232917,-500.0,0.00048219,120]
[355742613,1741524232952,-6.80987632,0.00048219,120]
[355742614,1741524290369,160.0,0.0002,3]
[355742615,1741524336150,-194.0131577,0.00025643,2]
[355742616,1741524398741,10023.00032976,0.0002502,2]
[355742620,1741524426094,-255.06347878,0.00025643,2]
[355742621,1741524437076,-435.20042235,0.00025643,2]
[355742622,1741524441204,-6.14381728,0.00025643,2]
[355742623,1741524441226,-486.27104381,0.00026925,2]
[355742624,1741524441248,-77.77733785,0.00028019,2]
[355742626,1741524453124,-222.22266215,0.00028019,2]
[355742627,1741524453147,-500.0,0.0002802,2]
[355742628,1741524453170,-500.0,0.0002802,2]
[355742629,1741524453193,-976.61863723,0.0002802,2]
[355742630,1741524453216,-500.0,0.0002802,2]
[355742631,1741524453240,-800.69844637,0.0002802,2]
[355742632,1741524453261,-186.5323306,0.00028357,2]
[355742633,1741524453283,-338.7508966,0.00028433,2]
[355742634,1741524453304,-2445.12202934,0.00028837,2]
[355742646,1741524548193,-300.0,0.00028,2]
[355742647,1741524548215,-674.79237648,0.0002802,2]
[355742648,1741524548235,-253.60336696,0.00028837,2]
[355742649,1741524548255,-195.5275059,0.00028919,2]
[355742650,1741524548276,-3302.5783249,0.00029239,2]
[355742651,1741524548303,-500.0,0.00030483,2]
[355742652,1741524548327,-152.0,0.00030831,2]
[355742653,1741524548349,-200.0,0.0003089,2]
[355742654,1741524548370,-1097.55416692,0.000309,5]
[355742655,1741524548391,-400.0,0.00030997,2]
[355742656,1741524548410,-180.0,0.00030998,2]
[355742657,1741524548430,-225.42515677,0.00030998,2]
[355742658,1741524548450,-227.1565142,0.00030998,2]
[355742659,1741524548472,-569.46402397,0.00030998,2]
[355742660,1741524548493,-420.96431969,0.00030998,2]
[355742661,1741524548517,-543.67153819,0.00030998,2]
[355742662,1741524548542,-543.67153819,0.00030998,2]
[355742663,1741524548566,-543.67153819,0.00030998,2]
[355742664,1741524548595,-543.67153819,0.00030998,2]
[355742665,1741524548621,-543.67153819,0.00030998,2]
[355742666,1741524548645,-543.67153819,0.00030998,2]
[355742667,1741524548669,-543.67153819,0.00030998,2]
[355742668,1741524548693,-543.67153819,0.00030998,2]
[355742669,1741524548717,-543.67153819,0.00030998,2]
[355742670,1741524548740,-543.67153819,0.00030998,2]
[355742671,1741524548763,-543.67153819,0.00030998,2]
[355742672,1741524548789,-543.67153819,0.00030998,2]
[355742673,1741524548812,-543.67153819,0.00030998,2]
[355742674,1741524548836,-543.67153819,0.00030998,2]
[355742675,1741524548861,-543.67153819,0.00030998,2]
[355742676,1741524548885,-543.67153819,0.00030998,2]
[355742677,1741524548910,-543.67153819,0.00030998,2]
[355742678,1741524548935,-543.67153819,0.00030998,2]
[355742679,1741524548959,-543.67153819,0.00030998,2]
[355742680,1741524548983,-543.67153819,0.00030998,2]
[355742681,1741524549008,-543.67153819,0.00030998,2]
[355742682,1741524549032,-543.67153819,0.00030998,2]
[355742683,1741524549057,-543.67153819,0.00030998,2]
[355742684,1741524549081,-543.67153819,0.00030998,2]
[355742685,1741524549106,-543.67153819,0.00030998,2]
[355742686,1741524549131,-543.67153819,0.00030998,2]
[355742687,1741524549156,-543.67153819,0.00030998,2]
[355742688,1741524549180,-543.67153819,0.00030998,2]
[355742689,1741524549206,-543.67153819,0.00030998,2]
[355742690,1741524549230,-543.67153819,0.00030998,2]
[355742691,1741524549253,-543.67153819,0.00030998,2]
[355742692,1741524549276,-543.67153819,0.00030998,2]
[355742693,1741524549299,-543.67153819,0.00030998,2]
[355742694,1741524549325,-543.67153819,0.00030998,2]
[355742695,1741524549348,-543.67153819,0.00030998,2]
[355742696,1741524549372,-543.67153819,0.00030998,2]
[355742697,1741524549394,-543.67153819,0.00030998,2]
[355742698,1741524549417,-543.67153819,0.00030998,2]
[355742699,1741524549440,-543.67153819,0.00030998,2]
[355742700,1741524549463,-543.67153819,0.00030998,2]
[355742701,1741524549486,-543.67153819,0.00030998,2]
[355742702,1741524549509,-543.67153819,0.00030998,2]
[355742703,1741524549531,-543.67153819,0.00030998,2]
[355742704,1741524549554,-543.67153819,0.00030998,2]
[355742705,1741524549579,-543.67153819,0.00030998,2]
[355742706,1741524549602,-543.67153819,0.00030998,2]
[355742707,1741524549627,-543.67153819,0.00030998,2]
[355742708,1741524549653,-543.67153819,0.00030998,2]
[355742709,1741524549677,-543.67153819,0.00030998,2]
[355742710,1741524549702,-543.67153819,0.00030998,2]
[355742711,1741524549727,-543.67153819,0.00030998,2]
[355742712,1741524549753,-543.67153819,0.00030998,2]
[355742713,1741524549868,-543.67153819,0.00030998,2]